Cogmind - Beta 10.1 @@@ ROGUE MODE // 2020.10.27 @ 18:38:23 Player: Atherys Result: Destroyed by G-34 Mercenary with Small Laser Performance ------------- Evolutions (1) 500 Regions Visited (2) 400 Robots Destroyed (48) 240 Value Destroyed (1147) 1147 Prototype IDs (0) 0 Alien Tech Used (0) 0 Bonus (0) 0 TOTAL SCORE: 2287 Bonus ------- None Cogmind --------- Core Integrity 0/400 Matter 299/300 Energy 100/100 System Corruption 0% Temperature Cool (6) Movement Core (550) Ox10 Location -9/Materials Parts ------- > --- POWER (1) -------- (None) > --- PROPULSION (2) --- (None) > --- UTILITY (4) ------ Large Storage Unit Large Storage Unit > --- WEAPON (2) ------- (None) > --- INVENTORY (16) --- Large Storage Unit Medium Matter Pod (100) Large Matter Pod (150) Visual Processing Unit Signal Interpreter Terrain Scan Processor Improved Targeting Computer Core Shielding Utility Shielding Heavy EM Pulse Gun Particle Gun Light Cannon Mining Laser Peak State ------------ > --- POWER ------------ Ion Engine > --- PROPULSION ------- Improved Treads Improved Treads > --- UTILITY ---------- Large Storage Unit Large Storage Unit Improved Terrain Scanner Targeting Computer > --- WEAPON ----------- Heavy EM Pulse Gun Beam Rifle > --- INVENTORY -------- Large Storage Unit Medium Matter Pod Large Matter Pod Visual Processing Unit Signal Interpreter Terrain Scan Processor Improved Targeting Computer Core Shielding Utility Shielding Particle Gun Spread Laser Spread Laser Light Cannon Light Cannon Mining Laser [Rating: 16] Favorites ----------- Power Ion Engine Engine Ion Engine Propulsion Improved Treads Treads Improved Treads Leg Aluminum Leg Flight Unit Flight Unit Utility Large Storage Unit Device Improved Terrain Scanner Storage Large Storage Unit Processor Targeting Computer Weapon Light Cannon Energy Gun Heavy EM Pulse Gun Energy Cannon Beam Cannon Ballistic Gun Light Assault Rifle Ballistic Cannon Light Cannon Special Weapon Mining Laser Special Melee Weapon Datajack Build | -11 -10 -9 ------- Run | Scr Mat Mat Slots Evolved 2 | . . 2 Power . | . . . Propulsion . | . . . Utility 2 | . . 2 Weapon . | . . . Parts Attached 48 | 7 32 9 Power 4 | 1 3 . Engine 4 | 1 3 . Core . | . . . Reactor . | . . . Propulsion 10 | 2 8 . Treads 2 | . 2 . Leg 7 | 2 5 . Wheel . | . . . Hover . | . . . Flight 1 | . 1 . Utility 7 | 2 3 2 Device 2 | 1 . 1 Storage 4 | 1 3 . Processor 1 | . . 1 Hackware . | . . . Protection . | . . . Artifact . | . . . Weapon 27 | 2 18 7 Energy Gun 8 | 1 3 4 Energy Cannon 3 | . 3 . Ballistic Gun 5 | 1 4 . Ballistic Cannon 5 | . 3 2 Launcher . | . . . Special Weapon 2 | . 2 . Impact Weapon . | . . . Slashing Weapon . | . . . Piercing Weapon . | . . . Special Melee Weapon 4 | . 3 1 Unidentified Prototypes . | . . . Parts Lost 13 | . 3 10 Power 2 | . 1 1 Propulsion 2 | . . 2 Utility 2 | . . 2 Weapon 7 | . 2 5 Highest Loss Streak 9 | . 2 9 Average Slot Usage (%) 93 | . 99 74 Engine 12 | . 13 9 Treads 16 | . 16 18 Leg 8 | . 11 . Device 1 | . . 2 Storage 25 | . 27 22 Energy Gun 2 | . . 8 Energy Cannon 2 | . 2 . Ballistic Gun 6 | . 8 . Ballistic Cannon 10 | . 12 2 Special Melee Weapon 3 | . 1 7 Naked Turns . | . . . Heaviest Build 44 | 14 43 44 Greatest Support 46 | 20 46 46 Greatest Overweight (x) 11 | 1 2 11 Average Overweight (x) . | . . . Largest Inventory Capacity 16 | 6 16 16 Average Capacity 14 | 5 14 16 Most Carried 16 | 5 16 16 Average Carried 12 | 2 12 15 Final Capacity 16 | 6 16 16 Final Carried 15 | 3 15 13 Class Distribution -------------------- 88% | Mutant 11% | Scavenger-Mutant Dominant Class ---------------- Mutant | -10/Materials Mutant | -9/Materials Resources | -11 -10 -9 ----------- Run | Scr Mat Mat Matter Collected 1206 | 410 672 124 Remotely . | . . . Salvage Created 1428 | 243 676 509 Parts 115 | 20 56 39 Haulers Intercepted . | . . . Recyclers Shooed 2 | . 2 . Parts Field Recycled . | . . . Retrieved Matter . | . . . Parts Self-Destructed . | . . . Prevented . | . . . Kills | -11 -10 -9 ------- Run | Scr Mat Mat Combat Hostiles Destroyed 33 | . 19 14 Guns 16 | . 8 8 Cannons 16 | . 11 5 AOE 1 | . . 1 Classes Destroyed 10 | 3 4 3 Worker 3 | 2 1 . Builder 1 | . . 1 Tunneler 5 | 5 . . Recycler 1 | 1 . . Operator 1 | . 1 . Watcher 4 | . 3 1 Swarmer 9 | . 5 4 Grunt 20 | . 14 6 Duelist 1 | . . 1 Sentry 3 | . . 3 Best Kill Streak 5 | 5 4 5 Combat Bots Only 5 | . 3 5 Max Kills in Single Turn 2 | 1 1 2 Gunslinging . | . . . Exploded 1 | . . 1 Melee . | . . . Uniques/NPCs Destroyed . | . . . Combat | -11 -10 -9 -------- Run | Scr Mat Mat Damage Taken 2247 | . 890 1357 Core 561 | . 151 410 Absorbed by Shields . | . . . Core Remaining (%) 69 | 100 39 . Volleys Fired 160 | 19 87 54 Largest 2 | 2 2 2 Hottest 130 | 70 100 130 Shots Fired 255 | 38 149 68 Gun 178 | 38 92 48 Cannon 73 | . 53 20 Launcher . | . . . Special 4 | . 4 . Kinetic 150 | 19 111 20 Thermal 71 | 19 38 14 Explosive . | . . . Electromagnetic 34 | . . 34 Robot Hit Streak 17 | 6 5 17 Robot Miss Streak 12 | 6 12 5 Penetration Max . | . . . Secondary Targets 2 | . 2 . Max Gunslinging Chain 1 | . 1 . Shots Hit Robots 152 | 17 75 60 Core Hits 69 | 8 35 26 Critical Hits 2 | . 2 . Critical Kills 2 | . 2 . Critical Parts Destroyed . | . . . Melee Attacks 20 | . 12 8 Impact . | . . . Slashing . | . . . Piercing . | . . . Sneak Attacks 18 | . 11 7 Combat Hostiles . | . . . Follow-up Attacks . | . . . Damage Inflicted 1900 | 239 831 830 Guns 1123 | 239 403 481 Cannons 660 | . 426 234 Explosions 115 | . . 115 Melee . | . . . Ramming 2 | . 2 . Kinetic 845 | 76 535 234 Thermal 716 | 163 294 259 Explosive . | . . . Electromagnetic 337 | . . 337 Impact . | . . . Slashing . | . . . Piercing . | . . . Highest Corruption . | . . . Average Corruption . | . . . Corruption Purged . | . . . Overload Shots . | . . . Overflow Damage . | . . . Projectiles . | . . . Explosions . | . . . Melee . | . . . Knockbacks 3 | . 3 . Impact . | . . . Kinetic 3 | . 3 . Secondary . | . . . Self-Inflicted Damage 37 | . . 37 Shots 1 | . . 1 Rammed 1 | . 1 . Targets Rammed 1 | . 1 . Kicked . | . . . Crushed . | . . . Highest Temperature 276 | 45 276 206 Average Temperature 67 | 16 76 82 Received Heat Transfer 828 | . 279 549 Effects 1 | . . 1 Energy Bleed 1 | . . 1 Siege Activations . | . . . Robots Corrupted . | . . . Combat Hostiles . | . . . Parts Fried 4 | . . 4 Impact Corruptions . | . . . Robots Melted . | . . . Combat Hostiles . | . . . Parts Melted . | . . . Heat Transferred 1517 | 481 666 370 Parts Sabotaged . | . . . Parts Stolen . | . . . Parts Stripped . | . . . Power Chain Reactions 2 | . . 2 Missiles Intercepted . | . . . Alert | -11 -10 -9 ------- Run | Scr Mat Mat Peak Influence 300 | 40 300 258 Initial 26 | . 26 . Average 87 | 17 79 132 Maximum Alert Level 1 | . 1 1 Low Security (%) 84 | 100 87 67 Level 1 15 | . 12 32 Level 2 . | . . . Level 3 . | . . . Level 4 . | . . . Level 5 . | . . . High Security . | . . . Max Security . | . . . Squads Dispatched 7 | . 6 1 Investigation 4 | . 4 . Extermination . | . . . Reinforcement 3 | . 2 1 Assault . | . . . Garrison . | . . . Intercept . | . . . Construction Impeded . | . . . Haulers Reinforced . | . . . Stealth | -11 -10 -9 --------- Run | Scr Mat Mat Distress Signals 4 | . 3 1 Communications Jammed . | . . . Distress Signals . | . . . Times Spotted 61 | . 41 20 Peak Tracking Total 7 | . 7 5 Tactical Retreats 3 | . 3 . Traps | -11 -10 -9 ------- Run | Scr Mat Mat Traps Triggered 3 | . 3 . Indirectly . | . . . Trap Hack Attempts 14 | . 14 . Triggered . | . . . Disarmed . | . . . Reprogrammed . | . . . Reused . | . . . Traps Extracted . | . . . Installed . | . . . Triggered . | . . . Machines | -11 -10 -9 ---------- Run | Scr Mat Mat Machines Disabled 4 | . 1 3 Max in Single Turn 1 | . 1 1 Machines Sabotaged . | . . . Garrisons Compromised . | . . . Overloaded Fab Kills . | . . . Fab Network Shutdowns . | . . . Hacking | -11 -10 -9 --------- Run | Scr Mat Mat Machines Accessed 6 | . 5 1 Terminals 6 | . 5 1 Fabricators . | . . . Repair Stations . | . . . Recycling Units . | . . . Scanalyzers . | . . . Garrison Access . | . . . Total Hacks 13 | . 11 2 Successful 5 | . 4 1 Failed 8 | . 7 1 Catastrophic 1 | . 1 . Database Lockouts . | . . . Manual 9 | . 7 2 Terminals 13 | . 11 2 Fabricators . | . . . Repair Stations . | . . . Recycling Units . | . . . Scanalyzers . | . . . Garrison Access . | . . . Terminal Hacks 2 | . 2 . Unreport Threat 1 | . 1 . Recall Reinforcements 1 | . 1 . Fabricator Hacks . | . . . Repair Station Hacks . | . . . Recycling Unit Hacks . | . . . Scanalyzer . | . . . Garrison Access Hacks . | . . . Unauthorized Hacks 3 | . 2 1 Terminals 3 | . 2 1 Track 1 | . 1 . Operators 2 | . 1 1 Fabricators . | . . . Repair Stations . | . . . Recycling Units . | . . . Scanalyzers . | . . . Garrison Access . | . . . Data Cores Recovered . | . . . Used . | . . . Hacking Detections 5 | . 4 1 Full Trace Events 1 | . 1 . Feedback Events . | . . . Feedback Blocked . | . . . Robot Schematics Acquired . | . . . Robots Built . | . . . Matter . | . . . Time . | . . . Total Robot Build Rating . | . . . Part Schematics Acquired . | . . . Parts Built . | . . . Matter . | . . . Time . | . . . Total Part Build Rating . | . . . Parts Repaired . | . . . Time . | . . . Parts Recycled . | . . . Recycled Matter . | . . . Retrieved Matter . | . . . Retrieved Components . | . . . Parts Scanalyzed . | . . . Part Schematics Acquired . | . . . Parts Damaged . | . . . Bothacking | -11 -10 -9 ------------ Run | Scr Mat Mat Used RIF Installer . | . . . Robots Hacked 7 | . 4 3 Non-combat 7 | . 4 3 Combat . | . . . Robot Hacks Applied 16 | . 11 5 parse_system 7 | . 5 2 no_distress 7 | . 5 2 check_alert 2 | . 1 1 Relay Couplers Released . | . . . Robots Rewired . | . . . Allies Hacked . | . . . Hacks Repelled . | . . . Allies | -11 -10 -9 -------- Run | Scr Mat Mat Total Allies . | . . . Largest Group . | . . . Highest-Rated Group . | . . . Highest-Rated Ally . | . . . Total Orders . | . . . Ally Attacks . | . . . Total Damage . | . . . Kills . | . . . Allies Corrupted . | . . . Allies Melted . | . . . Intel | -11 -10 -9 ------- Run | Scr Mat Mat Robot Analysis Total . | . . . Derelict Logs Recovered . | . . . Drone Launches . | . . . Drone Recoveries . | . . . Exploration | -11 -10 -9 ------------- Run | Scr Mat Mat Turns Passed 2948 | 170 2115 663 Spaces Moved 1356 | 86 1044 226 Core 34 | 17 . 17 Treads 837 | . 628 209 Legs 485 | 69 416 . Wheels . | . . . Hover . | . . . Flight . | . . . Fastest Speed 50 | 50 120 160 Average Speed 157 | 111 154 190 Slowest Speed 600 | 120 180 600 Overloaded Moves . | . . . Propulsion Burnouts . | . . . Robots Hopped . | . . . Cave-ins Triggered . | . . . Exploration Rate (%) 44 | 6 99 29 Regions Visited 2 Branch Regions . Pre-discovered Areas . | . . . Known Exits Taken . | . . . Unknown Exits Taken 2 | 1 1 . Scrap Searched . | . . . Spaces Dug 4 | . 4 . Terrain Destroyed 13 | . 4 9 Melee . | . . . Projectile 4 | . 4 . AOE 9 | . . 9 Terrain Rammed . | . . . Walls Destroyed . | . . . Machines Disabled . | . . . Actions | -11 -10 -9 --------- Run | Scr Mat Mat Total 1891 | 122 1388 381 Wait 244 | . 163 81 Move 1354 | 85 1043 226 Hop . | . . . Pick Up 33 | 10 20 3 Fast Attach 4 | 1 3 . Attach 14 | 6 3 5 Detach . | . . . Swap 30 | . 26 4 Drop 17 | 1 16 . Fire 160 | 19 87 54 Melee 20 | . 12 8 Ram . | . . . Kick . | . . . Crush 1 | . 1 . Escape Stasis . | . . . Rewire . | . . . Trap 14 | . 14 . Miscellaneous . | . . . Route ------- -11/Scrapyard -10/Materials (discovered 4 exits: *Mat x3 / [*Min]) -9/Materials (discovered 1 exit: [*Mat]) History --------- Turn | Location | Event 17 | -11/Scrapyard | Discovered new exit (range 14) 171 | -11/Scrapyard | Entered Materials 302 | -10/Materials | Build established: Mutant 535 | -10/Materials | Discovered new exit (range 13) 674 | -10/Materials | Core integrity fell below 50% 797 | -10/Materials | Discovered new exit (range 11) 1007 | -10/Materials | Build established: Scavenger-Mutant 1021 | -10/Materials | Discovered new exit (range 12) 1332 | -10/Materials | Build established: Mutant 1475 | -10/Materials | Discovered new exit (range 12) 2286 | -10/Materials | Entered another Materials area 2286 | -9/Materials | Evolved 2 slots: Utility x2 2691 | -9/Materials | Discovered new exit (range 15) 2844 | -9/Materials | Core integrity fell below 50% 2897 | -9/Materials | Core integrity fell below 20% 2935 | -9/Materials | Lost 9 parts (1p2n2u4w) 2949 | -9/Materials | Destroyed by G-34 Mercenary with Small Laser Last Messages --------------- 02834_ K-01 Serf collects debris. 02835_ Imp. Terrain Scanner destroyed. 02836_ K-01 Serf collects debris. 02839_ G-47 Trooper destroyed. 02840_ K-01 Serf collects debris. 02841_ Y-45 Defender misfires. 02841_ Acquired 27 matter. 02842_ K-01 Serf collects debris. 02845_ Lgt. Cannon destroyed. 02846_ K-01 Serf collects debris. 02847_ Y-45 Defender IFF system glitched. 02848_ Acquired 4 matter. 02849_ K-01 Serf collects debris. 02855_ U-05 Engineer lays Concrete. 02857_ Spread Laser destroyed. 02857_ K-01 Serf collects debris. 02858_ Y-45 Defender destroyed. 02859_ K-01 Serf collects debris. 02880_ Spread Laser destroyed. 02904_ Targeting Computer destroyed. Map ----- +----------------------------------------------------+ | ??????????????????????????????????? | | ??????????????????????????????????? | | ?#?????????# ?????????????????????? | | ??????????????????????????????????? | | ?###########??????????????????????? | | ?# """ #?? ???????????????????? | | ?# """ #??????????????????????? | | ## """ #??????? ??????????????? | | ?# #??????????????????????? | | ?#"S # ?????????????????????? | | ?#""" #???? ?? ??????????????? | | ## "" ####+###????? ?????????? | | ?# ## ##### ?????????? | | #####+####### ?????????? | | ??????????? | | ????????????? | | """ """ ?????????????? | | #### """ """ #??#######??????? | | ???# %= ""= "" #### #??????? | | ???# *[% %= = #??????? | | ???# * % %! +??????? | | ???# !% ! t #??????? | | ???## ### [*########## #??????? | | ????###?#=% #??##????### ###??????? | | ?#??????# % ##?????????#g###??????? | | ?????# #????? ????# @ +??????? | | ???? ??# ##??"??????# #??????? | | ???????? ??????????# #??????? | | ???????# #?????????# +??????? | | ???????+ +?????????# #??????? | | ?????? # #?????????# #??????? | | ????? # #?????????# ??????? | | ????? ?## ##?? ??????# ??????? | | ???? ??# #??????????# ?????? | | ?+?##???# #??????????# ?????? | | ????????# #??????????# ####?????? | | ????????# #??????????# ?????????? | | # ??????# ???????????# ?????????? | | ????? ???????????? ?????????? | | ???????????????????? ?????????? | | ???????????????????? ?????????? | | ???????????????????????????????? | | ??????????????????????????????????? | | ??????????????????????????????????? | | ??????????????????????????????????? | | ??????????????????????????????????? | | ??????????????????????????????????? | | ??????????????????????????????????? | | ??????????????????????????????????? | | ??????????????????????????????????? | +----------------------------------------------------+ Best States ------------- Heat Dissipation 28 Energy Generation 10 Energy Capacity 250 Matter Stores 300 Matter Capacity 300 Sight Range 16 Terrain Scan Range 16 Terrain Scan Density 10 Evasion (%) 50 Targeting Accuracy 5 Recoil Reduction 2 Item Schematics ----------------- None Robot Schematics ------------------ None Fabricated ------------ Nothing Alien Tech Used ----------------- None Achievements -------------- None Challenges ------------ None Game ------ Seed RefineryAlertCycler Manual? 0 Play Time 00:33:48 Cumulative 13.1 hours Start 2020.10.27 @ 18:06:09 End 2020.10.27 @ 18:38:23 Sessions 1 Manual Loads 0 Difficulty Rogue Special Mode None Game No. 15 Rogue 15 Adventurer 0 Explorer 0 Win Type - Total 0 Types 0/0/0/0/0/0/0/0/0 Lore% 19 Gallery% 19 Achievement% 17 Wizard Run 0 Options --------- ASCII 0 Keyboard 0 Movement Mouse Keybinds 0 Fullscreen 2 Font 24/Smallcaps Map View 76x50 Tactical HUD 1 Map Filters NONE Filters NONE Steam X RUN: 875c6c1a-eff7-41e1-91ac-5c863aef7fc8